Workbook

Sheet Budget de mariage
B4: Date du mariage :
B5: =TODAY()+365 -> 2020-08-05
B7: Catégorie | C7: Estimé | D7: Réel | E7: Dans le budget/hors budget | F7: Terminé
B8: Vêtements et accessoires | C8: =Vêtements_et_accessoires_Total_Est -> 9,490.00 | D8: =Vêtements_et_accessoires_Total_Réel -> 9,770.00 | E8: =RécapitulatifBudget[[#This Row],[Estimé]]-RécapitulatifBudget[[#This Row],[Réel]] -> -280.00 | F8: =Vêtements_et_accessoires_Fait -> Non
B9: Réception | C9: =Réception_Total_Est -> 1,050.00 | D9: =Réception_Total_Réel -> 928.00 | E9: =RécapitulatifBudget[[#This Row],[Estimé]]-RécapitulatifBudget[[#This Row],[Réel]] -> 122.00 | F9: =Réception_Fait -> Oui
B10: Musique | C10: =Musique_Animations_Total_Est -> 600.00 | D10: =Musique_Animations_Total_Réel -> 500.00 | E10: =RécapitulatifBudget[[#This Row],[Estimé]]-RécapitulatifBudget[[#This Row],[Réel]] -> 100.00 | F10: =Musique_Fait -> Oui
B11: Impression | C11: =Impression_Papeterie_Total_Est -> 935.00 | D11: =Impression_Papeterie_Total_Réel -> 870.00 | E11: =RécapitulatifBudget[[#This Row],[Estimé]]-RécapitulatifBudget[[#This Row],[Réel]] -> 65.00 | F11: =Impression_Fait -> Non
B12: Photographie | C12: =Photographie_Total_Est -> 1,625.00 | D12: =Photographie_Total_Réel -> 1,575.00 | E12: =RécapitulatifBudget[[#This Row],[Estimé]]-RécapitulatifBudget[[#This Row],[Réel]] -> 50.00 | F12: =Photographie_Fait -> Non
B13: Décoration | C13: =Décoration_Total_Est -> 700.00 | D13: =Décoration_Total_Réel -> 720.00 | E13: =RécapitulatifBudget[[#This Row],[Estimé]]-RécapitulatifBudget[[#This Row],[Réel]] -> -20.00 | F13: =Décoration_Fait -> Oui
B14: Fleurs | C14: =Fleurs_Total_Est -> 900.00 | D14: =Fleurs_Total_Réel -> 850.00 | E14: =RécapitulatifBudget[[#This Row],[Estimé]]-RécapitulatifBudget[[#This Row],[Réel]] -> 50.00 | F14: =Fleurs_Fait -> Non
B15: Cadeaux | C15: =Cadeaux_Total_Est -> 1,345.00 | D15: =Cadeaux_Total_Réel -> 1,075.00 | E15: =RécapitulatifBudget[[#This Row],[Estimé]]-RécapitulatifBudget[[#This Row],[Réel]] -> 270.00 | F15: =Cadeaux_Fait -> Non
B16: Transport | C16: =Transport_Total_Est -> 100.00 | D16: =Transport_Total_Réel -> 165.00 | E16: =RécapitulatifBudget[[#This Row],[Estimé]]-RécapitulatifBudget[[#This Row],[Réel]] -> -65.00 | F16: =Transport_Fait -> Oui
B17: Autres | C17: =Autres_frais_Total_Est -> 885.00 | D17: =Autres_frais_Total_Réel -> 1,021.00 | E17: =RécapitulatifBudget[[#This Row],[Estimé]]-RécapitulatifBudget[[#This Row],[Réel]] -> -136.00 | F17: =Autres_Fait -> Non
B18: Total des dépenses | C18: =SUBTOTAL(109,RécapitulatifBudget[Estimé]) -> 17,630.00 | D18: =SUBTOTAL(109,RécapitulatifBudget[Réel]) -> 17,474.00 | E18: =SUBTOTAL(109,RécapitulatifBudget[Dans le budget/hors budget]) -> 156.00
B19: Le graphique présentant le pourcentage de dépenses par catégorie figure dans cette cellule.

Sheet Dépenses
B2: Vêtements et accessoires
B4: Catégorie | C4: Estimé | D4: Réel | E4: Dans le budget/hors budget
B5: Alliance(s) | C5: 1,500.00 | D5: 1,500.00 | E5: =Dépenses!$C5-Dépenses!$D5 -> 0.00
B6: Alliance conjoint 1 | C6: 2,000.00 | D6: 2,300.00 | E6: =Dépenses!$C6-Dépenses!$D6 -> -300.00
B7: Robe/Costume conjoint 1 | C7: 3,000.00 | D7: 2,750.00 | E7: =Dépenses!$C7-Dépenses!$D7 -> 250.00
B8: Voile/Tiare conjoint 1 | C8: 500.00 | D8: 500.00 | E8: =Dépenses!$C8-Dépenses!$D8 -> 0.00
B9: Chaussures conjoint 1 | C9: 350.00 | D9: 300.00 | E9: =Dépenses!$C9-Dépenses!$D9 -> 50.00
B10: Bijoux conjoint 1 | C10: 400.00 | D10: 550.00 | E10: =Dépenses!$C10-Dépenses!$D10 -> -150.00
B11: Bas conjoint 1 | C11: 20.00 | D11: 20.00 | E11: =Dépenses!$C11-Dépenses!$D11 -> 0.00
B12: Alliance conjoint 2 | C12: 300.00 | D12: 250.00 | E12: =Dépenses!$C12-Dépenses!$D12 -> 50.00
B13: Robe/Costume conjoint 2 | C13: 300.00 | D13: 350.00 | E13: =Dépenses!$C13-Dépenses!$D13 -> -50.00
B14: Voile/Tiare conjoint 2 | C14: 500.00 | D14: 500.00 | E14: =Dépenses!$C14-Dépenses!$D14 -> 0.00
B15: Chaussures conjoint 2 | C15: 200.00 | D15: 175.00 | E15: =Dépenses!$C15-Dépenses!$D15 -> 25.00
B16: Bijoux conjoint 2 | C16: 400.00 | D16: 550.00 | E16: =Dépenses!$C16-Dépenses!$D16 -> -150.00
B17: Bas conjoint 2 | C17: 20.00 | D17: 25.00 | E17: =Dépenses!$C17-Dépenses!$D17 -> -5.00
B18: Total vêtements et accessoires | C18: =SUBTOTAL(109,Vêtements_et_accessoires[Estimé]) -> 9,490.00 | D18: =SUBTOTAL(109,Vêtements_et_accessoires[Réel]) -> 9,770.00 | E18: =SUBTOTAL(109,Vêtements_et_accessoires[Dans le budget/hors budget]) -> -280.00
D20: ="Toutes les dépenses de la catégorie "&B2&" sont-elles terminées ?" -> Toutes les dépenses de la catégorie Vêtements et accessoires sont-elles terminées ? | E20: Non
B22: Réception*
B24: Catégorie | C24: Estimé | D24: Réel | E24: Dans le budget/hors budget
B25: Location de salle | C25: 200.00 | D25: 150.00 | E25: =Dépenses!$C25-Dépenses!$D25 -> 50.00
B26: Tables et chaises | C26: 100.00 | D26: 50.00 | E26: =Dépenses!$C26-Dépenses!$D26 -> 50.00
B27: Nourriture | C27: 0.00 | D27: 0.00 | E27: =Dépenses!$C27-Dépenses!$D27 -> 0.00
B28: Boissons | C28: 0.00 | D28: 0.00 | E28: =Dépenses!$C28-Dépenses!$D28 -> 0.00
B29: Linge de table | C29: 0.00 | D29: 0.00 | E29: =Dépenses!$C29-Dépenses!$D29 -> 0.00
B30: Gâteau | C30: 700.00 | D30: 700.00 | E30: =Dépenses!$C30-Dépenses!$D30 -> 0.00
B31: Cadeaux pour les invités | C31: 50.00 | D31: 28.00 | E31: =Dépenses!$C31-Dépenses!$D31 -> 22.00
B32: Personnel et pourboires | C32: 0.00 | D32: 0.00 | E32: =Dépenses!$C32-Dépenses!$D32 -> 0.00
B33: Total réception | C33: =SUBTOTAL(109,Réception[Estimé]) -> 1,050.00 | D33: =SUBTOTAL(109,Réception[Réel]) -> 928.00 | E33: =SUBTOTAL(109,Réception[Dans le budget/hors budget]) -> 122.00
B34: * Hors animation et décoration
D36: ="Toutes les dépenses de la catégorie "&B22&" sont-elles terminées ?" -> Toutes les dépenses de la catégorie Réception* sont-elles terminées ? | E36: Oui
B38: Musique/Animation
B40: Catégorie | C40: Estimé | D40: Réel | E40: Dans le budget/hors budget
B41: Musiciens pour la cérémonie | C41: 400.00 | D41: 400.00 | E41: =Dépenses!$C41-Dépenses!$D41 -> 0.00
B42: Orchestre/DJ pour la réception | C42: 200.00 | D42: 100.00 | E42: =Dépenses!$C42-Dépenses!$D42 -> 100.00
B43: Total musique/animation | C43: =SUBTOTAL(109,Musique[Estimé]) -> 600.00 | D43: =SUBTOTAL(109,Musique[Réel]) -> 500.00 | E43: =SUBTOTAL(109,Musique[Dans le budget/hors budget]) -> 100.00
D45: ="Toutes les dépenses de la catégorie "&B38&" sont-elles terminées ?" -> Toutes les dépenses de la catégorie Musique/Animation sont-elles terminées ? | E45: Oui
B47: Impression/Papeterie
B49: Catégorie | C49: Estimé | D49: Réel | E49: Dans le budget/hors budget
B50: Invitations | C50: 500.00 | D50: 450.00 | E50: =Dépenses!$C50-Dépenses!$D50 -> 50.00
B51: Annonces | C51: 200.00 | D51: 175.00 | E51: =Dépenses!$C51-Dépenses!$D51 -> 25.00
B52: Cartes de remerciement | C52: 100.00 | D52: 100.00 | E52: =Dépenses!$C52-Dépenses!$D52 -> 0.00
B53: Papeterie à en-tête | C53: 0.00 | D53: 0.00 | E53: =Dépenses!$C53-Dépenses!$D53 -> 0.00
B54: Livre d’or | C54: 25.00 | D54: 25.00 | E54: =Dépenses!$C54-Dépenses!$D54 -> 0.00
B55: Programmes | C55: 75.00 | D55: 80.00 | E55: =Dépenses!$C55-Dépenses!$D55 -> -5.00
B56: Serviettes pour la réception | C56: 35.00 | D56: 40.00 | E56: =Dépenses!$C56-Dépenses!$D56 -> -5.00
B57: Pochettes d’allumettes | C57: 0.00 | D57: 0.00 | E57: =Dépenses!$C57-Dépenses!$D57 -> 0.00
B58: Calligraphie | C58: 0.00 | D58: 0.00 | E58: =Dépenses!$C58-Dépenses!$D58 -> 0.00
B59: Total impression/papeterie | C59: =SUBTOTAL(109,Impression[Estimé]) -> 935.00 | D59: =SUBTOTAL(109,Impression[Réel]) -> 870.00 | E59: =SUBTOTAL(109,Impression[Dans le budget/hors budget]) -> 65.00
D61: ="Toutes les dépenses de la catégorie "&B47&" sont-elles terminées ?" -> Toutes les dépenses de la catégorie Impression/Papeterie sont-elles terminées ? | E61: Non
B63: Photographie
B65: Catégorie | C65: Estimé | D65: Réel | E65: Dans le budget/hors budget
B66: Robes | C66: 1,300.00 | D66: 1,300.00 | E66: =Dépenses!$C66-Dépenses!$D66 -> 0.00
B67: Tirages supplémentaires | C67: 25.00 | D67: 25.00 | E67: =Dépenses!$C67-Dépenses!$D67 -> 0.00
B68: Albums photo | C68: 100.00 | D68: 100.00 | E68: =Dépenses!$C68-Dépenses!$D68 -> 0.00
B69: Vidéo | C69: 200.00 | D69: 150.00 | E69: =Dépenses!$C69-Dépenses!$D69 -> 50.00
B70: Total photographie | C70: =SUBTOTAL(109,Photographie[Estimé]) -> 1,625.00 | D70: =SUBTOTAL(109,Photographie[Réel]) -> 1,575.00 | E70: =SUBTOTAL(109,Photographie[Dans le budget/hors budget]) -> 50.00
D72: ="Toutes les dépenses de la catégorie "&B63&" sont-elles terminées ?" -> Toutes les dépenses de la catégorie Photographie sont-elles terminées ? | E72: Non
B74: Décoration*
B76: Catégorie | C76: Estimé | D76: Réel | E76: Dans le budget/hors budget
B77: Nœuds de chaise | C77: 0.00 | D77: 0.00 | E77: =Dépenses!$C77-Dépenses!$D77 -> 0.00
B78: Ornements de table | C78: 300.00 | D78: 320.00 | E78: =Dépenses!$C78-Dépenses!$D78 -> -20.00
B79: Bougies | C79: 100.00 | D79: 75.00 | E79: =Dépenses!$C79-Dépenses!$D79 -> 25.00
B80: Éclairage | C80: 100.00 | D80: 75.00 | E80: =Dépenses!$C80-Dépenses!$D80 -> 25.00
B81: Ballons | C81: 200.00 | D81: 250.00 | E81: =Dépenses!$C81-Dépenses!$D81 -> -50.00
B82: Total décoration | C82: =SUBTOTAL(109,Décoration[Estimé]) -> 700.00 | D82: =SUBTOTAL(109,Décoration[Réel]) -> 720.00 | E82: =SUBTOTAL(109,Décoration[Dans le budget/hors budget]) -> -20.00
B83: *Hors fleurs
D85: ="Toutes les dépenses de la catégorie "&B74&" sont-elles terminées ?" -> Toutes les dépenses de la catégorie Décoration* sont-elles terminées ? | E85: Oui
B87: Fleurs
B89: Catégorie | C89: Estimé | D89: Réel | E89: Dans le budget/hors budget
B90: Bouquets | C90: 500.00 | D90: 450.00 | E90: =Dépenses!$C90-Dépenses!$D90 -> 50.00
B91: Boutonnières | C91: 0.00 | D91: 0.00 | E91: =Dépenses!$C91-Dépenses!$D91 -> 0.00
B92: Petits bouquets à épingler au corsage | C92: 0.00 | D92: 0.00 | E92: =Dépenses!$C92-Dépenses!$D92 -> 0.00
B93: Cérémonie | C93: 400.00 | D93: 400.00 | E93: =Dépenses!$C93-Dépenses!$D93 -> 0.00
B94: Réception | C94: 0.00 | D94: 0.00 | E94: =Dépenses!$C94-Dépenses!$D94 -> 0.00
B95: Total fleurs | C95: =SUBTOTAL(109,Fleurs[Estimé]) -> 900.00 | D95: =SUBTOTAL(109,Fleurs[Réel]) -> 850.00 | E95: =SUBTOTAL(109,Fleurs[Dans le budget/hors budget]) -> 50.00
D97: ="Toutes les dépenses de la catégorie "&B87&" sont-elles terminées ?" -> Toutes les dépenses de la catégorie Fleurs sont-elles terminées ? | E97: Non
B99: Cadeaux
B101: Catégorie | C101: Estimé | D101: Réel | E101: Dans le budget/hors budget
B102: Garçons et demoiselles d’honneur | C102: 1,000.00 | D102: 400.00 | E102: =Dépenses!$C102-Dépenses!$D102 -> 600.00
B103: Conjoint 1 | C103: 150.00 | D103: 200.00 | E103: =Dépenses!$C103-Dépenses!$D103 -> -50.00
B104: Conjoint 2 | C104: 150.00 | D104: 200.00 | E104: =Dépenses!$C104-Dépenses!$D104 -> -50.00
B105: Parents | C105: 25.00 | D105: 25.00 | E105: =Dépenses!$C105-Dépenses!$D105 -> 0.00
B106: Lecteurs/autres participants | C106: 20.00 | D106: 250.00 | E106: =Dépenses!$C106-Dépenses!$D106 -> -230.00
B107: Total cadeaux | C107: =SUBTOTAL(109,Cadeaux[Estimé]) -> 1,345.00 | D107: =SUBTOTAL(109,Cadeaux[Réel]) -> 1,075.00 | E107: =SUBTOTAL(109,Cadeaux[Dans le budget/hors budget]) -> 270.00
D109: ="Toutes les dépenses de la catégorie "&B99&" sont-elles terminées ?" -> Toutes les dépenses de la catégorie Cadeaux sont-elles terminées ? | E109: Non
B111: Transport
B113: Catégorie | C113: Estimé | D113: Réel | E113: Dans le budget/hors budget
B114: Limousines/Bus | C114: 100.00 | D114: 125.00 | E114: =Dépenses!$C114-Dépenses!$D114 -> -25.00
B115: Parking | C115: 0.00 | D115: 40.00 | E115: =Dépenses!$C115-Dépenses!$D115 -> -40.00
B116: Taxis | C116: 0.00 | D116: 0.00 | E116: =Dépenses!$C116-Dépenses!$D116 -> 0.00
B117: Total transport | C117: =SUBTOTAL(109,Transport[Estimé]) -> 100.00 | D117: =SUBTOTAL(109,Transport[Réel]) -> 165.00 | E117: =SUBTOTAL(109,Transport[Dans le budget/hors budget]) -> -65.00
D119: ="Toutes les dépenses de la catégorie "&B111&" sont-elles terminées ?" -> Toutes les dépenses de la catégorie Transport sont-elles terminées ? | E119: Oui
B121: Autres frais
B123: Catégorie | C123: Estimé | D123: Réel | E123: Dans le budget/hors budget
B124: Célébrant | C124: 0.00 | D124: 0.00 | E124: =Dépenses!$C124-Dépenses!$D124 -> 0.00
B125: Frais église/lieu de la cérémonie | C125: 40.00 | D125: 55.00 | E125: =Dépenses!$C125-Dépenses!$D125 -> -15.00
B126: Coordinateur du mariage | C126: 0.00 | D126: 0.00 | E126: =Dépenses!$C126-Dépenses!$D126 -> 0.00
B127: Dîner de répétition | C127: 450.00 | D127: 450.00 | E127: =Dépenses!$C127-Dépenses!$D127 -> 0.00
B128: Fête de fiançailles | C128: 20.00 | D128: 50.00 | E128: =Dépenses!$C128-Dépenses!$D128 -> -30.00
B129: Fêtes | C129: 30.00 | D129: 20.00 | E129: =Dépenses!$C129-Dépenses!$D129 -> 10.00
B130: Soins de mise en beauté | C130: 45.00 | D130: 46.00 | E130: =Dépenses!$C130-Dépenses!$D130 -> -1.00
B131: Enterrements de vie de garçon/jeune fille | C131: 0.00 | D131: 0.00 | E131: =Dépenses!$C131-Dépenses!$D131 -> 0.00
B132: Brunch | C132: 300.00 | D132: 400.00 | E132: =Dépenses!$C132-Dépenses!$D132 -> -100.00
B133: Chambres d’hôtel | C133: 0.00 | D133: 0.00 | E133: =Dépenses!$C133-Dépenses!$D133 -> 0.00
B134: Total autres frais | C134: =SUBTOTAL(109,Autres_frais[Estimé]) -> 885.00 | D134: =SUBTOTAL(109,Autres_frais[Réel]) -> 1,021.00 | E134: =SUBTOTAL(109,Autres_frais[Dans le budget/hors budget]) -> -136.00
D136: ="Toutes les dépenses de la catégorie "&B121&" sont-elles terminées ?" -> Toutes les dépenses de la catégorie Autres frais sont-elles terminées ? | E136: Non

Sheet Calculs (hidden)
B2: CATÉGORIE | C2: ESTIMÉ | D2: Réel | F2: Estimé | H2: DANS LE BUDGET/HORS BUDGET
B3: Vêtements et accessoires | C3: =Vêtements_et_accessoires_Total_Est -> 9,490.00 | D3: =Vêtements_et_accessoires_Total_Réel -> 9,770.00 | E3: =C3-F3 -> 9,480.00 | F3: =ROUNDUP($C$13/1000,0) -> 10.00 | G3: =$D$13-E3 -> 290 | H3: =D3-C3 -> 280.00
B4: Réception | C4: =Réception_Total_Est -> 1,050.00 | D4: =Réception_Total_Réel -> 928.00 | E4: =C4-F4 -> 1,040.00 | F4: =ROUNDUP($C$13/1000,0) -> 10.00 | G4: =$D$13-E4 -> 8730 | H4: =D4-C4 -> -122.00
B5: Musique | C5: =Musique_Animations_Total_Est -> 600.00 | D5: =Musique_Animations_Total_Réel -> 500.00 | E5: 590.00 | F5: 10.00 | G5: 9180 | H5: -100.00
B6: Impression | C6: =Impression_Papeterie_Total_Est -> 935.00 | D6: =Impression_Papeterie_Total_Réel -> 870.00 | E6: 925.00 | F6: 10.00 | G6: 8845 | H6: -65.00
B7: Photographie | C7: =Photographie_Total_Est -> 1,625.00 | D7: =Photographie_Total_Réel -> 1,575.00 | E7: 1,615.00 | F7: 10.00 | G7: 8155 | H7: -50.00
B8: Décoration | C8: =Décoration_Total_Est -> 700.00 | D8: =Décoration_Total_Réel -> 720.00 | E8: 690.00 | F8: 10.00 | G8: 9080 | H8: 20.00
B9: Fleurs | C9: =Fleurs_Total_Est -> 900.00 | D9: =Fleurs_Total_Réel -> 850.00 | E9: 890.00 | F9: 10.00 | G9: 8880 | H9: -50.00
B10: Cadeaux | C10: =Cadeaux_Total_Est -> 1,345.00 | D10: =Cadeaux_Total_Réel -> 1,075.00 | E10: 1,335.00 | F10: 10.00 | G10: 8435 | H10: -270.00
B11: Transport | C11: =Transport_Total_Est -> 100.00 | D11: =Transport_Total_Réel -> 165.00 | E11: 90.00 | F11: 10.00 | G11: 9680 | H11: 65.00
B12: Autres | C12: =Autres_frais_Total_Est -> 885.00 | D12: =Autres_frais_Total_Réel -> 1,021.00 | E12: 875.00 | F12: 10.00 | G12: 8895 | H12: 136.00
B13: Max | C13: =MAX(C3:D12) -> 9770 | D13: =MAX(C3:D12) -> 9770 | F13: 10.00
